Cogmind - Beta 16 @@@ ROGUE MODE // 2025.10.22 @ 17:57:44 Player: star Result: Self-destructed Performance ------------- Evolutions (2) 1000 Regions Visited (3) 600 Robots Destroyed (48) 240 Value Destroyed (1071) 1071 Prototype IDs (14) 280 Alien Tech Used (0) 0 Bonus (22) 22 TOTAL SCORE: 3213 Bonus ------- High Alert Combat Kills 22 Cogmind --------- Core Integrity 332/550 Matter 294/300 Energy 10/100 System Corruption 0% Temperature Hot (213) Movement Core (400) Ox7 Location -8/Materials Parts ------- > --- POWER (1) -------- (None) > --- PROPULSION (4) --- (None) > --- UTILITY (3) ------ Large Storage Unit > --- WEAPON (3) ------- Heavy Particle Gun > --- INVENTORY (15) --- Arachnoskeleton Small Storage Unit Cobbler Unit Improved Datajack Makeshift Spear Peak State ------------ > --- POWER ------------ Ion Engine > --- PROPULSION ------- Aluminum Leg Aluminum Leg Improved Aluminum Leg > --- UTILITY ---------- Small Storage Unit Actuator Array Makeshift Light Armor Plating > --- WEAPON ----------- Heavy Particle Gun Barrage Gun Makeshift Spear > --- INVENTORY -------- Arachnoskeleton Medium Matter Pod Cobbler Unit Advanced Beam Rifle [Rating: 27] Favorites ----------- Power Ion Engine Engine Ion Engine Propulsion Aluminum Leg Treads Light Treads Leg Aluminum Leg Wheel Compact Wheel Utility Small Storage Unit Device Actuator Array Storage Small Storage Unit Protection Makeshift Light Armor Plating Weapon Heavy Particle Gun Energy Gun Heavy Particle Gun Ballistic Gun Light Assault Rifle Launcher Grenade Launcher Piercing Weapon Makeshift Spear Special Melee Weapon Improved Datajack Build | -11 -10 -10 -8 ------- Run | Yrd Mat Sub Mat Slots Evolved 4 | . . . 4 Power . | . . . . Propulsion 2 | . . . 2 Utility 1 | . . . 1 Weapon 1 | . . . 1 Parts Attached 29 | 6 2 5 16 Power 3 | 1 . . 2 Engine 3 | 1 . . 2 Core . | . . . . Reactor . | . . . . Propulsion 7 | 2 . 2 3 Treads 2 | . . . 2 Leg 3 | . . 2 1 Wheel 2 | 2 . . . Hover . | . . . . Flight . | . . . . Utility 5 | 1 . 1 3 Device 1 | . . . 1 Storage 3 | 1 . . 2 Processor . | . . . . Hackware . | . . . . Protection 1 | . . 1 . Artifact . | . . . . Weapon 14 | 2 2 2 8 Energy Gun 5 | . 1 . 4 Energy Cannon . | . . . . Ballistic Gun 3 | 2 . . 1 Ballistic Cannon . | . . . . Launcher 3 | . 1 1 1 Special Weapon . | . . . . Impact Weapon . | . . . . Slashing Weapon . | . . . . Piercing Weapon 1 | . . 1 . Special Melee Weapon 2 | . . . 2 Unidentified Prototypes 2 | . . . 2 Parts Lost 15 | . 1 1 13 Power 3 | . . . 3 Propulsion 5 | . 1 . 4 Utility 2 | . . . 2 Weapon 5 | . . 1 4 Highest Loss Streak 4 | . 1 1 4 To Critical Strikes . | . . . . Average Backups 5 | 1 6 5 4 Power . | . 1 . . Propulsion 1 | 1 2 . 1 Utility 1 | . . 2 1 Weapon 2 | . 2 2 1 Tool/Special . | . . . . Unused Backups 9 | . . 4 5 Power 1 | . . 1 . Propulsion 1 | . . . 1 Utility 3 | . . 1 2 Weapon 3 | . . 2 1 Tool/Special 1 | . . . 1 Average Slot Usage (%) 80 | . 75 96 69 Engine 9 | . 14 14 4 Treads 2 | . . . 5 Leg 14 | . . 27 7 Wheel 2 | . 18 . . Device 1 | . . . 3 Storage 14 | . 14 14 14 Protection 8 | . . 11 8 Energy Gun 8 | . 8 . 16 Ballistic Gun 2 | . 17 . . Launcher 6 | . 1 14 1 Piercing Weapon 6 | . . 13 3 Special Melee Weapon 2 | . . . 4 Peak Build Rating 27 | 6 6 16 27 Average Rating 16 | 4 5 13 22 On Entrance 6 | . 6 6 15 Avg Prop Armor Cover (%) . | . . . . Naked Turns . | . . . . Heaviest Build 36 | 13 15 19 36 Greatest Support 40 | 32 32 20 40 Greatest Overweight (x) 5 | 1 . . 5 Average Overweight (x) . | . . . . Largest Inventory Capacity 15 | 8 8 8 15 Average Capacity 8 | 7 8 8 8 Most Carried 8 | 4 7 8 8 Average Carried 7 | 2 6 7 7 Final Capacity 15 | 8 8 8 15 Final Carried 8 | 4 7 7 8 Class Distribution -------------------- 95% | Mutant 4% | Tank Dominant Class ---------------- Mutant | -10/Materials Mutant | -10/Subcaves Mutant | -8/Materials Resources | -11 -10 -10 -8 ----------- Run | Yrd Mat Sub Mat Matter Collected 830 | 260 78 331 161 Remotely . | . . . . Salvage Created 1202 | . 162 209 831 Parts 89 | . 16 17 56 Haulers Intercepted 4 | . 1 . 3 Recyclers Shooed 1 | . . . 1 Parts Field Recycled . | . . . . Retrieved Matter . | . . . . Parts Self-Destructed 5 | . . 5 . Prevented . | . . . . Parts Restored . | . . . . Kills | -11 -10 -10 -8 ------- Run | Yrd Mat Sub Mat Combat Hostiles Destroyed 39 | . 9 5 25 Melee 4 | . . 2 2 Guns 10 | . 2 . 8 AOE 25 | . 7 3 15 Classes Destroyed 10 | . 4 4 2 Worker 1 | . . . 1 Builder 2 | . 1 . 1 Hauler 4 | . 1 . 3 Recycler 2 | . . . 2 Swarmer 22 | . 6 . 16 Grunt 9 | . 3 . 6 Sentry 4 | . . 1 3 Artisan 1 | . . 1 . Cobbler 1 | . . 1 . Subdweller 4 | . . 4 . Best Kill Streak 6 | . 6 2 6 Combat Bots Only 4 | . 4 2 4 Max Kills in Single Turn 4 | . 2 1 4 Gunslinging . | . . . . Exploded 4 | . 2 1 4 Melee 1 | . . 1 1 Uniques/NPCs Destroyed . | . . . . Combat | -11 -10 -10 -8 -------- Run | Yrd Mat Sub Mat Hostile Shots Fired 228 | . 35 34 159 Missed 61 | . 6 14 41 Hits 167 | . 29 20 118 Projectile 167 | . 29 20 118 Critical Strikes 6 | . 1 . 5 Damage Taken 2132 | . 350 388 1394 Core 393 | . 95 80 218 Absorbed by Shields . | . . . . Core Remaining (%) 65 | 100 . 30 . Volleys Fired 73 | . 23 9 41 Largest 2 | . 2 1 2 Hottest 116 | . 40 30 116 Shots Fired 118 | . 39 9 70 Gun 93 | . 32 . 61 Cannon . | . . . . Launcher 25 | . 7 9 9 Special . | . . . . Kinetic 32 | . 32 . . Thermal 61 | . . . 61 Explosive 25 | . 7 9 9 Electromagnetic . | . . . . Robot Hit Streak 10 | . 9 5 10 Robot Miss Streak 4 | . 3 . 4 Penetration Max . | . . . . Secondary Targets . | . . . . Shots Hit Robots 101 | . 24 13 64 Core Hits 69 | . 16 10 43 Critical Kills . | . . . . Critical Parts Destroyed . | . . . . Critical Strikes 5 | . . 1 4 Burn 3 | . . . 3 Impale 2 | . . 1 1 Melee Attacks 49 | . . 28 21 Impact . | . . . . Slashing . | . . . . Piercing 40 | . . 28 12 Sneak Attacks 11 | . . 2 9 Combat Hostiles . | . . . . Follow-up Attacks . | . . . . Damage Inflicted 3861 | . 747 658 2456 Guns 997 | . 211 . 786 Cannons . | . . . . Explosions 2261 | . 536 337 1388 Melee 601 | . . 321 280 Ramming 2 | . . . 2 Kinetic 211 | . 211 . . Thermal 786 | . . . 786 Explosive 2261 | . 536 337 1388 Electromagnetic . | . . . . Impact . | . . . . Slashing . | . . . . Piercing 601 | . . 321 280 Highest Corruption . | . . . . Average Corruption . | . . . . Corruption Purged . | . . . . Corruption Blocked . | . . . . Overload Shots . | . . . . Overflow Damage 131 | . 63 . 68 Projectiles . | . . . . Explosions 131 | . 63 . 68 Melee . | . . . . Knockbacks . | . . . . Impact . | . . . . Kinetic . | . . . . Secondary . | . . . . Self-Inflicted Damage 31 | . 9 . 22 Shots 2 | . 1 . 1 Rammed . | . . . . Targets Rammed 1 | . . . 1 Kicked 1 | . . . 1 Crushed . | . . . . Highest Temperature 350 | . 34 . 350 Average Temperature 96 | . 12 . 112 Received Heat Transfer 786 | . 177 87 522 Effects 1 | . . . 1 Energy Bleed 1 | . . . 1 Siege Activations . | . . . . Martial Activations . | . . . . Shielding Activations . | . . . . Robots Disrupted . | . . . . Combat Hostiles . | . . . . Robots Corrupted . | . . . . Combat Hostiles . | . . . . Parts Fried . | . . . . Impact Corruptions . | . . . . Robots Melted . | . . . . Combat Hostiles . | . . . . Parts Melted 5 | . . . 5 Heat Transferred 1776 | . . . 1776 Parts Sabotaged . | . . . . Parts Stolen . | . . . . Parts Stripped . | . . . . Power Chain Reactions . | . . . . Alert | -11 -10 -10 -8 ------- Run | Yrd Mat Sub Mat Maximum Alert Level 2 | . 1 . 2 Low Security (%) 78 | 100 62 . 82 Level 1 13 | . 37 . 7 Level 2 7 | . . . 9 Level 3 . | . . . . Level 4 . | . . . . Level 5 . | . . . . High Security . | . . . . Max Security . | . . . . Peak Influence 433 | . 265 . 433 Initial . | . . . . Average 92 | . 156 . 78 Influence Increases 1126 | . 335 20 771 Destroy 0b10 Robot/C 700 | . 180 20 500 Destroy 0b10 Robot/NC 45 | . 10 . 35 Destroy Leader 128 | . 32 . 96 Successful Hack 2 | . . . 2 Disable Machine 120 | . 45 . 75 Destroy Structure 71 | . 38 . 33 Lose Combat Pursuer 60 | . 30 . 30 Influence Decreases 757 | . 218 137 402 Entered New Map 57 | . . 57 . Time Decay 610 | . 208 80 322 Lost Part 90 | . 10 . 80 Squads Dispatched 2 | . . . 2 Investigation . | . . . . Extermination . | . . . . Reinforcement 2 | . . . 2 Assault . | . . . . Garrison . | . . . . Intercept . | . . . . Searches Triggered . | . . . . Construction Impeded . | . . . . Haulers Reinforced . | . . . . Active Scanning Responses . | . . . . Cargo Convoy Interrupts . | . . . . Stealth | -11 -10 -10 -8 --------- Run | Yrd Mat Sub Mat Distress Signals 4 | . 1 . 3 Communications Jammed . | . . . . Distress Signals . | . . . . Times Spotted 59 | . 11 9 39 Peak Tracking Total 5 | . 5 3 5 Tactical Retreats 3 | . 1 1 1 Traps | -11 -10 -10 -8 ------- Run | Yrd Mat Sub Mat Traps Triggered 2 | . . 1 1 Indirectly . | . . . . Trap Hack Attempts . | . . . . Triggered . | . . . . Disarmed . | . . . . Reprogrammed . | . . . . Reused . | . . . . Traps Extracted . | . . . . Installed . | . . . . Triggered . | . . . . Machines | -11 -10 -10 -8 ---------- Run | Yrd Mat Sub Mat Machines Disabled 11 | . 3 3 5 Max in Single Turn 1 | . 1 1 1 Machines Repaired . | . . . . Machines Dismantled . | . . . . Machines Sabotaged . | . . . . Overloaded Fab Kills . | . . . . Hacking | -11 -10 -10 -8 --------- Run | Yrd Mat Sub Mat Machines Accessed 4 | . . 2 2 Terminals . | . . . . Fabricators . | . . . . Repair Stations . | . . . . Recycling Units . | . . . . Scanalyzers 1 | . . . 1 Garrison Access 1 | . . . 1 Total Hacks 14 | . . 5 9 Successful 12 | . . 5 7 Failed 1 | . . . 1 Catastrophic . | . . . . Database Lockouts 1 | . . . 1 Manual . | . . . . Terminals . | . . . . Fabricators . | . . . . Repair Stations . | . . . . Recycling Units . | . . . . Scanalyzers 8 | . . . 8 Garrison Access 1 | . . . 1 Terminal Hacks 5 | . . 5 . Record 4 | . . 4 . Proto ID Catalog 1 | . . 1 . Fabricator Hacks . | . . . . Repair Station Hacks . | . . . . Recycling Unit Hacks . | . . . . Scanalyzer 6 | . . . 6 Retrieve Study 6 | . . . 6 Garrison Access Hacks 1 | . . . 1 Unlock Access 1 | . . . 1 Unauthorized Hacks . | . . . . Terminals . | . . . . Fabricators . | . . . . Repair Stations . | . . . . Recycling Units . | . . . . Scanalyzers . | . . . . Garrison Access . | . . . . Data Cores Recovered . | . . . . Used . | . . . . Hacking Detections 1 | . . . 1 Full Trace Events . | . . . . Feedback Events . | . . . . Feedback Blocked . | . . . . Robot Schematics Acquired . | . . . . Robots Built . | . . . . Authchips . | . . . . Time . | . . . . Total Robot Build Rating . | . . . . Part Schematics Acquired . | . . . . Parts Built . | . . . . Authchips . | . . . . Time . | . . . . Total Part Build Rating . | . . . . Part Studies Acquired 6 | . . . 6 Parts Repaired . | . . . . Time . | . . . . Parts Recycled . | . . . . Recycled Matter . | . . . . Retrieved Matter . | . . . . Retrieved Components . | . . . . Parts Scanalyzed . | . . . . Part Schematics Acquired . | . . . . Parts Damaged . | . . . . Bothacking | -11 -10 -10 -8 ------------ Run | Yrd Mat Sub Mat Used RIF Installer . | . . . . Robots Hacked 2 | . . . 2 Non-combat 2 | . . . 2 Combat . | . . . . Robot Hacks Applied 3 | . . . 3 parse_system 1 | . . . 1 find_recycling 2 | . . . 2 Relay Couplers Released . | . . . . Fabnet Peak Effective % . | . . . . Robots Rewired . | . . . . Allies Hacked . | . . . . Hacks Repelled . | . . . . Allies | -11 -10 -10 -8 -------- Run | Yrd Mat Sub Mat Total Allies . | . . . . Largest Group . | . . . . Highest-Rated Group . | . . . . Highest-Rated Ally . | . . . . Total Orders . | . . . . Ally Attacks . | . . . . Total Damage . | . . . . Kills . | . . . . Allies Corrupted . | . . . . Allies Melted . | . . . . Intel | -11 -10 -10 -8 ------- Run | Yrd Mat Sub Mat Active Infowar (turns) . | . . . . Robot Analysis Total . | . . . . Derelict Logs Recovered 1 | . . 1 . Drone Launches . | . . . . Drone Recoveries . | . . . . Exploration | -11 -10 -10 -8 ------------- Run | Yrd Mat Sub Mat Turns Passed 4101 | 72 514 1618 1897 Spaces Moved 2245 | 59 194 1256 736 Core 8 | 4 . . 4 Treads 321 | . . . 321 Legs 1656 | . . 1245 411 Wheels 260 | 55 194 11 . Hover . | . . . . Flight . | . . . . Fastest Speed 50 | 50 100 100 120 Average Speed 135 | 97 100 119 173 Slowest Speed 300 | 100 100 120 300 Overloaded Moves . | . . . . Propulsion Burnouts . | . . . . Robots Hopped . | . . . . Potential Cave-ins . | . . . . Cave-ins Triggered . | . . . . Exploration Rate (%) 40 | 4 46 67 45 Regions Visited 3 Branch Regions 1 Pre-discovered Areas 1 | . . 1 . Known Exits Taken . | . . . . Unknown Exits Taken 3 | 1 1 1 . Scrap Searched 5 | . . 5 . Spaces Dug 4 | . . 4 . Terrain Destroyed 127 | . 46 41 40 Melee 4 | . . 4 . Projectile . | . . . . AOE 123 | . 46 37 40 Terrain Rammed . | . . . . Walls Destroyed . | . . . . Machines Disabled . | . . . . Actions | -11 -10 -10 -8 --------- Run | Yrd Mat Sub Mat Total 3145 | 70 476 1329 1270 Wait 708 | 2 254 17 435 Move 2242 | 58 193 1255 736 Hop . | . . . . Pick Up 21 | 4 3 6 8 Fast Attach 15 | 6 . 1 8 Attach 4 | . . 2 2 Detach . | . . . . Swap 17 | . 3 4 10 Drop 15 | . . 7 8 Fire 73 | . 23 9 41 Melee 49 | . . 28 21 Ram . | . . . . Kick 1 | . . . 1 Crush . | . . . . Escape Stasis . | . . . . Rewire . | . . . . Trap . | . . . . Miscellaneous . | . . . . Route ------- -11/Scrapyard -10/Materials (discovered 2 exits: [*Mat] / *Sub) -10/Subcaves (discovered 2 exits: *Mat x2) -8/Materials (discovered 1 exit: Gar) History --------- Turn | Location | Event 31 | -11/Scrapyard | Discovered new exit (range 16) 73 | -11/Scrapyard | Entered Materials 300 | -10/Materials | Build established: Mutant 333 | -10/Materials | Discovered new exit (range 7) 566 | -10/Materials | Discovered new exit (range 9) 587 | -10/Materials | Entered Subcaves 635 | -10/Subcaves | Shifting Twisted Machinery released Mak. Spear 635 | -10/Subcaves | Shifting Twisted Machinery released Ripper 755 | -10/Subcaves | Discovered new exit (range 7) 756 | -10/Subcaves | Shifting Twisted Machinery released Flamer 759 | -10/Subcaves | Shifting Twisted Machinery released Sub. Laser 761 | -10/Subcaves | Discovered new exit (range 12) 1286 | -10/Subcaves | Visited 4L-MR0's lab 1300 | -10/Subcaves | Found Arachnoskeleton 1550 | -10/Subcaves | Ambushed by angry Subdweller bent on revenge 1685 | -10/Subcaves | Core integrity fell below 50% 1918 | -10/Subcaves | Learned location of Zion (-6) 2022 | -10/Subcaves | Visited Clippyterm 2025 | -10/Subcaves | Learned Factory stockpile data 2205 | -10/Subcaves | Entered Materials 2205 | -8/Materials | Evolved 4 slots: Propulsion x2, Utility x1, Weapon x1 2977 | -8/Materials | Identified exit to Garrison 3081 | -8/Materials | Lost 3 parts (1p1n1w) 3198 | -8/Materials | Central database locked down 4078 | -8/Materials | Lost 3 parts (1p1u1w) 4102 | -8/Materials | Self-destructed Last Messages --------------- 03951_ K-01 Serf collects debris. 03953_ Acquired 54 matter. 03954_ K-01 Serf collects debris. 03964_ R-06 Scavenger collects Hvy. Assault Rifle. 04028_ Penetrated by Slug. 04037_ Mak. Light Armor Plating destroyed. 04038_ Imp. Grenade Launcher+ destroyed. 04047_ Penetrated by Slug. 04047_ Lgt. Ion Engine destroyed. 04076_ Slug penetrates Wall. 04086_ Critical hit (Burn: +37). 04088_ Lgt. Treads destroyed. 04090_ Slug penetrates Wall. 04091_ Lgt. Treads destroyed. 04092_ Med. Matter Pod destroyed. 04093_ Lgt. Angular Momentum Engine melted. 04093_ Hvy. Laser melted. 04093_ G-50 Soldier destroyed. 04094_ Hvy. Particle Gun destroyed. 04096_ Slug penetrates Wall. Map ----- +----------------------------------------------------+ | ??????????????????????????? # ]*% #?# | | ??????????????????????????? # =% = ##?# | | ???????????? ????????????? # " #?# | | ???????????# ???????????? " ##?# | | ???????????# ???????????? % """ #??# | | ???????????# ???????????? % """ #??## | | ???????????# ???????????? * #???? | | ???????????# #######+###### ###?? | | ?????????? # #?? | | ?????????? + #?? | | ???????????# """ "" #?? | | ???????????# """""" "" + ? | | ???????????# """"" "" # " | | ???????????# T" # | | ??????#+#### ! "" #?# | | ??????# "" ? | | ??????# | | ??????### | | ????????# ########### #######+### ### | | ????????# ??????????# #????? ??? #?? | | ????????# ???????????# #?????""??? #?? | | ????????# ????????????# #?????????? #?? | | ????????# ?????????????# #??????????? #?? | | ???????# ?????????????# #???????????? #?? | | ???????# ?????????###### #???????????????? | | ???????/ ??????????#@ # #???????????????? | | ?????? # ???????????# # #???????????????? | | ?????"?# ???????????# # #???????????????? | | ???????#????????????# # ########### ???? | | ????????????????????# g%# ??? | | ????????????????????# g/ ??? | | ????????????????????# # ??? | | ????????????????????# ## #############+???? | | ????????????????????# ## # ]#????????? | | ????????????????????####### + "T" #????????? | | ??????????????????????????# # #????????? | | ??????????????????????????# #########????????? | | ????????????????????????### ####?????????????? | | ????????????????????????# #?????????????? | | ????????????????????????#! !#?????????????? | | ????????????????????????##! !!##?????????????? | | ?????????????????????????######??????????????? | | ?????????????????????????????????????????????? | | | | | | | | | | | | | | | +----------------------------------------------------+ Best States ------------- Heat Dissipation 31 Energy Generation 12 Energy Capacity 250 Matter Stores 400 Matter Capacity 400 Sight Range 16 Terrain Scan Density 10 Armor Coverage 100 Evasion (%) 55 Recoil Reduction 2 Item Schematics ----------------- None Robot Schematics ------------------ None Fabricated ------------ Nothing Repaired ---------- Nothing Studied --------- Imp. Aluminum Leg | -8/Materials | Hacked Aluminum Leg | -8/Materials | Hacked Ion Engine | -8/Materials | Hacked Hvy. Mace | -8/Materials | Hacked Imp. Datajack | -8/Materials | Hacked Imp. Grenade Launcher | -8/Materials | Hacked Alien Tech Used ----------------- None Achievements -------------- Item+ Junior Dev Mistaken Identity Not Today, Chutes Challenges ------------ None Game ------ Seed ResetBiocellCannon Manual? 0 Play Time 00:29:59 Cumulative 157.8 hours Start 2025.10.22 @ 17:30:31 End 2025.10.22 @ 17:57:44 Sessions 1 Manual Loads 0 Difficulty Rogue Special Mode None Game No. 272 Rogue 272 Adventurer 0 Explorer 0 Win Type - Total 1 Types 1/0/0/0/0/0/0/0/0/0 Lore% 53 Gallery% 57 Achievement% 29 Wizard Run 0 Options --------- Layout 0 ASCII 0 Keyboard 1 Movement Numpad Keybinds 0 Fullscreen 2 Font 18/SmallcapsGlow Map View 76x50 Zoom Use 0% Tactical HUD 1 Map Filters NONE Filters NONE Steam 1 RUN: 1f2fe1ee-6cf1-413e-9cb6-29a88ddca1d2